[Event "FIDE World School-ch G-13 2025"]
[Site "Vrnjacka Banja"]
[Date "2025.03.25"]
[Round "6.1"]
[White "Tereshchenko, Eliza"]
[Black "Amanzhol, Khanzada"]
[Result "1-0"]
[Annotator "NA RC"]
[ECO "E06"]
[WhiteElo "1751"]
[BlackElo "1908"]
[PlyCount "81"]
[EventDate "2025.03.19"]
[EventType "swiss"]
[EventCountry "SRB"]
[SourceTitle "playchess.com"]
[Source "ChessBase"]
[SourceQuality "1"]
[TimeControl "5400+30"]

1. d4 {[%emt 0:00:01]} Nf6 {[%emt 0:00:06]} 2. Nf3 {[%emt 0:00:09]} e6 {[%emt 0:00:30]} 3. g3 {[%emt 0:00:18]} d5 {[%emt 0:00:04]} 4. Bg2 {[%emt 0:00:07]} Be7 {[%emt 0:00:04]} 5. O-O {[%emt 0:00:18]} O-O {[%emt 0:00:04]} 6. c4 {[%emt 0:00:12]} a5 {[%emt 0:00:29]} 7. Qc2 {[%emt 0:02:30]} a4 {[%emt 0:01:20]} 8. Bf4 {[%emt 0:05:22]} dxc4 {[%emt 0:04:16]} 9. Qxc4 {[%emt 0:00:57]} Nd5 {[%emt 0:00:22]} 10. Nbd2 {[%emt 0:13:08]} Nd7 {[%emt 0:06:08]} 11. Rfd1 {[%emt 0:06:29]} b5 {[%emt 0:05:37]} 12. Qc2 {[%emt 0:04:50]} Nxf4 {[%emt 0:03:30]} 13. gxf4 {[%emt 0:00:08]} Bb7 {[%emt 0:00:20]} 14. e3 {[%emt 0:07:40]} Rb8 {[%emt 0:05:39]} 15. Ne5 {[%emt 0:08:13]} Nxe5 {[%emt 0:01:05]} 16. Bxb7 {[%emt 0:03:49]} Rxb7 {[%emt 0:04:34]} 17. dxe5 {[%emt 0:00:12]} c5 {[%emt 0:11:46]} 18. Ne4 {[%emt 0:04:50]} Qb6 {[%emt 0:00:50]} 19. Rac1 {[%emt 0:03:01]} Rc8 {[%emt 0:05:29]} 20. Nd6 {[%emt 0:06:41]} Bxd6 {[%emt 0:00:12]} 21. Rxd6 {[%emt 0:00:33]} Qa5 {[%emt 0:10:20]} 22. f5 {[%emt 0:07:26]} exf5 {[%emt 0:05:30]} 23. Qxf5 {[%emt 0:00:33]} Rbc7 {[%emt 0:01:44]} 24. Rcd1 {[%emt 0:09:03]} Qa8 {[%emt 0:00:52]} 25. Rd7 {[%emt 0:11:20]} Rxd7 {[%emt 0:00:14]} 26. Rxd7 {[%emt 0:00:05]} Rf8 {[%emt 0:00:23]} 27. e6 {[%emt 0:00:38]} fxe6 {[%emt 0:01:50]} 28. Qg5 {[%emt 0:00:27]} Rf7 {[%emt 0:07:38]} 29. Rd8+ {[%emt 0:00:04]} Qxd8 {[%emt 0:00:06]} 30. Qxd8+ {[%emt 0:00:04]} Rf8 {[%emt 0:00:21]} 31. Qb6 {[%emt 0:00:14]} a3 {[%emt 0:00:55]} 32. Qxc5 {[%emt 0:02:02]} axb2 {[%emt 0:02:23]} 33. Qxb5 {[%emt 0:00:06]} Kf7 {[%emt 0:00:12]} 34. Qxb2 {[%emt 0:00:05]} Kg6 {[%emt 0:00:12]} 35. a4 {[%emt 0:00:08]} Ra8 {[%emt 0:00:25]} 36. Qb5 {[%emt 0:00:09]} Kf6 {[%emt 0:00:09]} 37. a5 {[%emt 0:00:04]} Rd8 {[%emt 0:00:05]} 38. a6 {[%emt 0:00:08]} Rd5 {[%emt 0:00:10]} 39. Qxd5 {[%emt 0:00:13]} exd5 {[%emt 0:00:04]} 40. a7 {[%emt 0:00:03]} g6 {[%emt 0:00:05]} 41. a8=Q {[%emt 0:00:06]} 1-0

[Event "FIDE World School-ch G-13 2025"]
[Site "Vrnjacka Banja"]
[Date "2025.03.25"]
[Round "6.2"]
[White "Gaer, Sofiya Ig"]
[Black "Omirserik, Alima"]
[Result "1/2-1/2"]
[Annotator "NA RC"]
[ECO "B21"]
[WhiteElo "1733"]
[BlackElo "1814"]
[PlyCount "132"]
[EventDate "2025.03.19"]
[EventType "swiss"]
[EventCountry "SRB"]
[SourceTitle "playchess.com"]
[Source "ChessBase"]
[SourceQuality "1"]
[TimeControl "5400+30"]

1. e4 {[%emt 0:00:04]} c5 {[%emt 0:00:04]} 2. d4 {[%emt 0:00:08]} cxd4 {[%emt 0:00:03]} 3. c3 {[%emt 0:00:06]} dxc3 {[%emt 0:00:02]} 4. Nxc3 {[%emt 0:00:07]} Nc6 {[%emt 0:00:03]} 5. Nf3 {[%emt 0:00:11]} e6 {[%emt 0:00:04]} 6. Bc4 {[%emt 0:00:09]} Nge7 {[%emt 0:00:06]} 7. O-O {[%emt 0:00:20]} Ng6 {[%emt 0:00:20]} 8. Be3 {[%emt 0:01:47]} Be7 {[%emt 0:00:31]} 9. Qe2 {[%emt 0:01:15]} O-O {[%emt 0:02:23]} 10. Rfd1 {[%emt 0:01:59]} b6 {[%emt 0:09:26]} 11. a4 {[%emt 0:10:59]} Nge5 {[%emt 0:06:46]} 12. Nxe5 {[%emt 0:07:48]} Nxe5 {[%emt 0:00:06]} 13. Ba2 {[%emt 0:00:17]} Bb7 {[%emt 0:00:26]} 14. f4 {[%emt 0:01:38]} Ng6 {[%emt 0:01:46]} 15. Qd2 {[%emt 0:08:13]} Bc6 {[%emt 0:01:25]} 16. Rac1 {[%emt 0:04:14]} Bb4 {[%emt 0:07:01]} 17. Qd4 {[%emt 0:03:04]} Qe7 {[%emt 0:06:03]} 18. Kh1 {[%emt 0:02:58]} Rfd8 {[%emt 0:10:50]} 19. Bb3 {[%emt 0:09:27]} Bc5 {[%emt 0:08:06]} 20. Qd2 {[%emt 0:01:20]} Bxe3 {[%emt 0:00:19]} 21. Qxe3 {[%emt 0:00:17]} Qb4 {[%emt 0:01:49]} 22. Bc2 {[%emt 0:13:27]} Qxb2 {[%emt 0:02:59]} 23. f5 {[%emt 0:05:59]} exf5 {[%emt 0:04:08]} 24. exf5 {[%emt 0:00:25]} Nh4 {[%emt 0:00:32]} 25. Nd5 {[%emt 0:01:47]} Bxd5 {[%emt 0:01:46]} 26. Rxd5 {[%emt 0:00:27]} Re8 {[%emt 0:04:52]} 27. Qd2 {[%emt 0:02:42]} Rac8 {[%emt 0:08:04]} 28. h3 {[%emt 0:09:51]} g6 {[%emt 0:01:11]} 29. fxg6 {[%emt 0:05:12]} Nxg6 {[%emt 0:00:51]} 30. Rb5 {[%emt 0:01:34]} Qc3 {[%emt 0:02:17]} 31. Qf2 {[%emt 0:02:22]} Qe3 {[%emt 0:01:42]} 32. Qf1 {[%emt 0:01:50]} Qd2 {[%emt 0:03:43]} 33. Rb2 {[%emt 0:04:07]} Qe2 {[%emt 0:01:30]} 34. Qf5 {[%emt 0:00:50]} Qe5 {[%emt 0:00:32]} 35. Rcb1 {[%emt 0:00:32]} Qxf5 {[%emt 0:00:44]} 36. Bxf5 {[%emt 0:00:02]} Rcd8 {[%emt 0:00:15]} 37. Rd2 {[%emt 0:00:41]} d5 {[%emt 0:01:34]} 38. Rbd1 {[%emt 0:00:42]} Re5 {[%emt 0:00:12]} 39. Bc2 {[%emt 0:00:29]} Kf8 {[%emt 0:01:01]} 40. Bb3 {[%emt 0:00:28]} Ne7 {[%emt 0:00:41]} 41. Kg1 {[%emt 0:00:29]} Re6 {[%emt 0:01:23]} 42. Rd4 {[%emt 0:00:30]} Red6 {[%emt 0:00:36]} 43. Kf2 {[%emt 0:00:34]} a6 {[%emt 0:02:56]} 44. Kf3 {[%emt 0:00:32]} b5 {[%emt 0:02:09]} 45. axb5 {[%emt 0:00:32]} axb5 {[%emt 0:00:09]} 46. Kf2 {[%emt 0:00:31]} R8d7 {[%emt 0:00:53]} 47. Rb4 {[%emt 0:00:27]} Rb6 {[%emt 0:03:58]} 48. Rbd4 {[%emt 0:00:15]} h6 {[%emt 0:01:35]} 49. Rc1 {[%emt 0:00:34]} Kg7 {[%emt 0:02:21]} 50. Rc5 {[%emt 0:00:30]} f5 {[%emt 0:01:13]} 51. Rb4 {[%emt 0:00:31]} d4 {[%emt 0:00:51]} 52. Rbxb5 {[%emt 0:00:38]} Rg6 {[%emt 0:00:28]} 53. Rc2 {[%emt 0:00:34]} Rgd6 {[%emt 0:01:05]} 54. Rd2 {[%emt 0:00:25]} Kf6 {[%emt 0:00:13]} 55. g4 {[%emt 0:00:39]} fxg4 {[%emt 0:00:39]} 56. hxg4 {[%emt 0:00:00]} Kg7 {[%emt 0:00:41]} 57. Kf3 {[%emt 0:00:31]} Rf6+ {[%emt 0:00:27]} 58. Ke4 {[%emt 0:00:39]} Rg6 {[%emt 0:00:50]} 59. Kf4 {[%emt 0:00:28]} Rgd6 {[%emt 0:00:27]} 60. g5 {[%emt 0:00:36]} Ng6+ {[%emt 0:00:27]} 61. Kg4 {[%emt 0:00:23]} hxg5 {[%emt 0:00:16]} 62. Rxg5 {[%emt 0:00:06]} Rb6 {[%emt 0:00:56]} 63. Bc2 {[%emt 0:00:34]} d3 {[%emt 0:00:30]} 64. Rxd3 {[%emt 0:00:39]} Rc7 {[%emt 0:00:24]} 65. Rd2 {[%emt 0:00:37]} Rcc6 {[%emt 0:00:44]} 66. Rd1 {[%emt 0:01:28]} Rb5 1/2-1/2

[Event "FIDE World School-ch G-13 2025"]
[Site "Vrnjacka Banja"]
[Date "2025.03.25"]
[Round "6.3"]
[White "Begmuratova, Sarvinoz"]
[Black "Smirnova, Viktoria A"]
[Result "1-0"]
[Annotator "NA RC"]
[ECO "B40"]
[WhiteElo "1808"]
[BlackElo "1671"]
[PlyCount "63"]
[EventDate "2025.03.19"]
[EventType "swiss"]
[EventCountry "SRB"]
[SourceTitle "playchess.com"]
[Source "ChessBase"]
[SourceQuality "1"]
[TimeControl "5400+30"]

1. e4 {[%emt 0:00:02]} c5 {[%emt 0:00:07]} 2. Nf3 {[%emt 0:00:05]} e6 {[%emt 0:00:15]} 3. g3 {[%emt 0:00:05]} b6 {[%emt 0:05:24]} 4. Bg2 {[%emt 0:01:58]} Bb7 {[%emt 0:03:16]} 5. Qe2 {[%emt 0:01:00]} Nc6 {[%emt 0:06:05]} 6. c3 {[%emt 0:01:37]} d5 {[%emt 0:05:55]} 7. exd5 {[%emt 0:08:52]} Qxd5 {[%emt 0:01:04]} 8. O-O {[%emt 0:00:20]} Nf6 {[%emt 0:09:08]} 9. Re1 {[%emt 0:08:14]} Be7 {[%emt 0:04:19]} 10. Qb5 {[%emt 0:10:08]} O-O {[%emt 0:21:09]} 11. Na3 {[%emt 0:06:22]} Qh5 {[%emt 0:11:48]} 12. Nc4 {[%emt 0:09:00]} Na5 {[%emt 0:09:45]} 13. Re5 {[%emt 0:21:47]} a6 {[%emt 0:09:14]} 14. Qa4 {[%emt 0:06:40]} Bc6 {[%emt 0:06:13]} 15. Qd1 {[%emt 0:01:47]} Qg4 {[%emt 0:03:10]} 16. Nxa5 {[%emt 0:00:28]} bxa5 {[%emt 0:00:03]} 17. h3 {[%emt 0:00:15]} Qc4 {[%emt 0:01:20]} 18. Bf1 {[%emt 0:03:28]} Bxf3 {[%emt 0:00:41]} 19. Qxf3 {[%emt 0:00:05]} Qa4 {[%emt 0:00:22]} 20. Qb7 {[%emt 0:02:38]} Bd6 {[%emt 0:00:34]} 21. b3 {[%emt 0:00:44]} Rfb8 {[%emt 0:00:34]} 22. Qxb8+ {[%emt 0:04:01]} Rxb8 {[%emt 0:00:10]} 23. bxa4 {[%emt 0:00:03]} Bxe5 {[%emt 0:00:10]} 24. Bxa6 {[%emt 0:00:14]} Rd8 {[%emt 0:01:06]} 25. Kf1 {[%emt 0:05:13]} Ne4 {[%emt 0:00:33]} 26. Ke2 {[%emt 0:00:05]} Rb8 {[%emt 0:00:09]} 27. Bd3 {[%emt 0:03:51]} Nf6 {[%emt 0:00:50]} 28. Ba3 {[%emt 0:00:22]} Rc8 {[%emt 0:00:20]} 29. Ba6 {[%emt 0:01:31]} Rb8 {[%emt 0:00:39]} 30. Bxc5 {[%emt 0:00:57]} Rb2 {[%emt 0:00:07]} 31. Ba3 {[%emt 0:00:07]} Rc2 {[%emt 0:00:22]} 32. Kd3 {[%emt 0:04:31]} 1-0

[Event "FIDE World School-ch G-13 2025"]
[Site "Vrnjacka Banja"]
[Date "2025.03.25"]
[Round "6.4"]
[White "Abylaykyzy, Bibisara"]
[Black "Mamakova, Aknur"]
[Result "1-0"]
[Annotator "NA RC"]
[ECO "A14"]
[WhiteElo "1651"]
[BlackElo "1797"]
[PlyCount "67"]
[EventDate "2025.03.19"]
[EventType "swiss"]
[EventCountry "SRB"]
[SourceTitle "playchess.com"]
[Source "ChessBase"]
[SourceQuality "1"]
[TimeControl "5400+30"]

1. Nf3 {[%emt 0:00:07]} Nf6 {[%emt 0:02:14]} 2. g3 {[%emt 0:00:07]} e6 {[%emt 0:00:08]} 3. Bg2 {[%emt 0:00:06]} d5 {[%emt 0:00:42]} 4. O-O {[%emt 0:00:50]} Be7 {[%emt 0:00:45]} 5. b3 {[%emt 0:00:51]} O-O {[%emt 0:00:29]} 6. c4 {[%emt 0:00:30]} c5 {[%emt 0:01:27]} 7. e3 {[%emt 0:03:05]} Nc6 {[%emt 0:01:44]} 8. d4 {[%emt 0:01:11]} b6 {[%emt 0:06:16]} 9. Bb2 {[%emt 0:02:11]} Bb7 {[%emt 0:01:06]} 10. Nbd2 {[%emt 0:06:29]} Rc8 {[%emt 0:02:42]} 11. a3 {[%emt 0:05:17]} Nb8 {[%emt 0:05:26]} 12. Rc1 {[%emt 0:09:00]} Nbd7 {[%emt 0:02:48]} 13. Qe2 {[%emt 0:05:04]} Re8 {[%emt 0:02:54]} 14. Rfd1 {[%emt 0:01:41]} Bf8 {[%emt 0:02:33]} 15. Ne5 {[%emt 0:09:48]} Qe7 {[%emt 0:04:23]} 16. f4 {[%emt 0:06:27]} Red8 {[%emt 0:03:49]} 17. Qf2 {[%emt 0:02:52]} Ne4 {[%emt 0:08:35]} 18. Nxe4 {[%emt 0:01:29]} dxe4 {[%emt 0:00:04]} 19. Nxd7 {[%emt 0:01:39]} Qxd7 {[%emt 0:03:49]} 20. Bh3 {[%emt 0:09:01]} f5 {[%emt 0:01:03]} 21. Bf1 {[%emt 0:02:04]} Qf7 {[%emt 0:04:03]} 22. dxc5 {[%emt 0:02:28]} bxc5 {[%emt 0:01:46]} 23. Qe1 {[%emt 0:01:14]} Bc6 {[%emt 0:04:24]} 24. b4 {[%emt 0:02:59]} Rxd1 {[%emt 0:02:35]} 25. Rxd1 {[%emt 0:00:25]} Ba4 {[%emt 0:00:24]} 26. Rc1 {[%emt 0:00:17]} Rb8 {[%emt 0:06:12]} 27. b5 {[%emt 0:01:09]} Qd7 {[%emt 0:04:43]} 28. Qa5 {[%emt 0:04:12]} Bd1 {[%emt 0:01:34]} 29. Be5 {[%emt 0:01:17]} Rc8 {[%emt 0:03:19]} 30. Qc3 {[%emt 0:05:06]} Rd8 {[%emt 0:02:50]} 31. Ra1 {[%emt 0:03:31]} Ba4 {[%emt 0:05:01]} 32. Qa5 {[%emt 0:02:40]} Bc2 {[%emt 0:00:59]} 33. a4 {[%emt 0:00:51]} Qb7 {[%emt 0:02:39]} 34. Qxd8 {[%emt 0:00:11]} 1-0

[Event "FIDE World School-ch G-13 2025"]
[Site "Vrnjacka Banja"]
[Date "2025.03.25"]
[Round "6.5"]
[White "Xu, Luna Yuexiu"]
[Black "Akuratiya, A G Hansadie Aradhya"]
[Result "1/2-1/2"]
[Annotator "NA RC"]
[ECO "A96"]
[WhiteElo "1901"]
[BlackElo "1629"]
[PlyCount "118"]
[EventDate "2025.03.19"]
[EventType "swiss"]
[EventCountry "SRB"]
[SourceTitle "playchess.com"]
[Source "ChessBase"]
[SourceQuality "1"]
[TimeControl "5400+30"]

1. d4 {[%emt 0:00:05]} f5 {[%emt 0:00:19]} 2. c4 {[%emt 0:00:09]} Nf6 {[%emt 0:00:05]} 3. Nc3 {[%emt 0:00:21]} e6 {[%emt 0:00:07]} 4. Nf3 {[%emt 0:00:37]} Be7 {[%emt 0:00:15]} 5. g3 {[%emt 0:00:16]} d6 {[%emt 0:00:16]} 6. Bg2 {[%emt 0:00:29]} O-O {[%emt 0:00:21]} 7. O-O {[%emt 0:00:37]} Ne4 {[%emt 0:00:14]} 8. Qc2 {[%emt 0:03:47]} Nxc3 {[%emt 0:00:08]} 9. Qxc3 {[%emt 0:00:30]} Bf6 {[%emt 0:00:07]} 10. Be3 {[%emt 0:01:33]} Qe7 {[%emt 0:01:31]} 11. b4 {[%emt 0:01:56]} Nd7 {[%emt 0:04:54]} 12. Rfd1 {[%emt 0:02:34]} e5 {[%emt 0:02:41]} 13. Qb3 {[%emt 0:05:21]} g5 {[%emt 0:15:45]} 14. dxe5 {[%emt 0:05:55]} dxe5 {[%emt 0:02:20]} 15. c5+ {[%emt 0:01:40]} Kh8 {[%emt 0:00:42]} 16. Qd5 {[%emt 0:01:26]} f4 {[%emt 0:06:55]} 17. Bd2 {[%emt 0:03:30]} e4 {[%emt 0:06:05]} 18. Nd4 {[%emt 0:00:44]} c6 {[%emt 0:02:56]} 19. Qe6 {[%emt 0:04:42]} Qg7 {[%emt 0:07:10]} 20. Nf5 {[%emt 0:00:55]} Qg6 {[%emt 0:02:06]} 21. Ne7 {[%emt 0:07:45]} Qe8 {[%emt 0:03:13]} 22. Qxe4 {[%emt 0:08:05]} Qxe7 {[%emt 0:03:20]} 23. Qxe7 {[%emt 0:03:05]} Bxe7 {[%emt 0:00:08]} 24. b5 {[%emt 0:01:26]} Nxc5 {[%emt 0:07:40]} 25. Bc3+ {[%emt 0:00:32]} Kg8 {[%emt 0:00:59]} 26. bxc6 {[%emt 0:02:03]} bxc6 {[%emt 0:00:42]} 27. gxf4 {[%emt 0:01:19]} gxf4 {[%emt 0:01:14]} 28. Bxc6 {[%emt 0:00:20]} Rb8 {[%emt 0:01:20]} 29. Kh1 {[%emt 0:02:49]} Bf6 {[%emt 0:06:45]} 30. Bxf6 {[%emt 0:05:52]} Rxf6 {[%emt 0:01:04]} 31. Rd8+ {[%emt 0:00:15]} Rf8 {[%emt 0:04:38]} 32. Bd5+ {[%emt 0:01:57]} Be6 {[%emt 0:00:49]} 33. Bxe6+ {[%emt 0:01:23]} Nxe6 {[%emt 0:00:10]} 34. Rd6 {[%emt 0:00:16]} Rb6 {[%emt 0:02:27]} 35. Rg1+ {[%emt 0:01:20]} Kh8 {[%emt 0:00:46]} 36. Rd7 {[%emt 0:01:08]} a6 {[%emt 0:01:38]} 37. Rgd1 {[%emt 0:02:20]} Rb2 {[%emt 0:02:41]} 38. R1d2 {[%emt 0:00:20]} Rxd2 {[%emt 0:01:09]} 39. Rxd2 {[%emt 0:00:11]} Rd8 {[%emt 0:00:59]} 40. Rb2 {[%emt 0:00:34]} Rd6 {[%emt 0:01:54]} 41. Kg2 {[%emt 0:00:28]} Kg7 {[%emt 0:00:12]} 42. Rb7+ {[%emt 0:00:23]} Kg6 {[%emt 0:00:15]} 43. Kf3 {[%emt 0:00:36]} h5 {[%emt 0:00:35]} 44. e3 {[%emt 0:00:52]} fxe3 {[%emt 0:01:11]} 45. Kxe3 {[%emt 0:00:14]} Kf5 {[%emt 0:00:35]} 46. f4 {[%emt 0:02:23]} Kg4 {[%emt 0:03:11]} 47. h3+ {[%emt 0:03:08]} Kxh3 {[%emt 0:00:50]} 48. f5 {[%emt 0:00:09]} Nc5 {[%emt 0:02:28]} 49. Rc7 {[%emt 0:00:21]} Nd7 {[%emt 0:00:53]} 50. Kf4 {[%emt 0:00:38]} Rd4+ {[%emt 0:01:42]} 51. Kg5 {[%emt 0:00:21]} h4 {[%emt 0:00:38]} 52. Rc2 {[%emt 0:02:11]} Kg3 {[%emt 0:00:38]} 53. Rc3+ {[%emt 0:00:17]} Kg2 {[%emt 0:01:02]} 54. Rc2+ {[%emt 0:00:38]} Kf3 {[%emt 0:01:21]} 55. Rc3+ {[%emt 0:00:22]} Kg2 {[%emt 0:01:34]} 56. Rc2+ {[%emt 0:00:06]} Kg1 {[%emt 0:01:09]} 57. Rc1+ {[%emt 0:00:10]} Kf2 {[%emt 0:00:57]} 58. Rc2+ {[%emt 0:00:05]} Kg3 {[%emt 0:00:51]} 59. Rc3+ {[%emt 0:00:10]} Kg2 {[%emt 0:00:48]} 1/2-1/2

[Event "FIDE World School-ch G-13 2025"]
[Site "Vrnjacka Banja"]
[Date "2025.03.25"]
[Round "6.6"]
[White "Veleva, Ilijana"]
[Black "Leca Andrei, Anastasia"]
[Result "0-1"]
[Annotator "NA RC"]
[ECO "B30"]
[WhiteElo "1554"]
[BlackElo "1805"]
[PlyCount "160"]
[EventDate "2025.03.19"]
[EventType "swiss"]
[EventCountry "SRB"]
[SourceTitle "playchess.com"]
[Source "ChessBase"]
[SourceQuality "1"]
[TimeControl "5400+30"]

1. e4 {[%emt 0:00:04]} c5 {[%emt 0:00:06]} 2. Nf3 {[%emt 0:00:11]} e6 {[%emt 0:00:04]} 3. Nc3 {[%emt 0:00:24]} Nc6 {[%emt 0:00:35]} 4. Bb5 {[%emt 0:00:29]} Nd4 {[%emt 0:00:55]} 5. Bd3 {[%emt 0:00:50]} g6 {[%emt 0:01:10]} 6. b3 {[%emt 0:05:00]} Bg7 {[%emt 0:01:21]} 7. Bb2 {[%emt 0:00:54]} a6 {[%emt 0:02:07]} 8. O-O {[%emt 0:10:28]} Ne7 {[%emt 0:02:11]} 9. Rb1 {[%emt 0:18:53]} O-O {[%emt 0:01:30]} 10. Nxd4 {[%emt 0:13:39]} cxd4 {[%emt 0:00:15]} 11. Ne2 {[%emt 0:00:44]} d5 {[%emt 0:02:33]} 12. c3 {[%emt 0:10:00]} dxe4 {[%emt 0:00:59]} 13. Bxe4 {[%emt 0:00:32]} f5 {[%emt 0:00:02]} 14. Bd3 {[%emt 0:05:18]} Nc6 {[%emt 0:07:42]} 15. Qc2 {[%emt 0:10:43]} b5 {[%emt 0:04:12]} 16. Ba3 {[%emt 0:13:08]} Re8 {[%emt 0:01:02]} 17. c4 {[%emt 0:01:55]} b4 {[%emt 0:00:29]} 18. Bb2 {[%emt 0:00:02]} e5 {[%emt 0:00:21]} 19. f3 {[%emt 0:00:12]} h5 {[%emt 0:03:23]} 20. Ng3 {[%emt 0:03:04]} h4 {[%emt 0:00:39]} 21. Nh1 {[%emt 0:00:21]} Bb7 {[%emt 0:01:10]} 22. Nf2 {[%emt 0:00:23]} Na5 {[%emt 0:02:30]} 23. Rbe1 {[%emt 0:00:33]} Bh6 {[%emt 0:02:52]} 24. Re2 {[%emt 0:01:34]} Qd7 {[%emt 0:07:55]} 25. Rfe1 {[%emt 0:00:30]} Bg7 {[%emt 0:00:40]} 26. Qb1 {[%emt 0:01:04]} Bc6 {[%emt 0:00:52]} 27. Bc2 {[%emt 0:01:19]} Nb7 {[%emt 0:00:42]} 28. d3 {[%emt 0:00:42]} Nc5 {[%emt 0:00:12]} 29. Bc1 {[%emt 0:00:27]} Kf7 {[%emt 0:00:25]} 30. Bg5 {[%emt 0:01:09]} Bf6 {[%emt 0:00:10]} 31. Qc1 {[%emt 0:00:37]} Qd6 {[%emt 0:04:50]} 32. Bxf6 {[%emt 0:01:21]} Qxf6 {[%emt 0:00:27]} 33. Nh3 {[%emt 0:00:00]} Kg7 {[%emt 0:01:44]} 34. Qg5 {[%emt 0:00:23]} Qxg5 {[%emt 0:02:27]} 35. Nxg5 {[%emt 0:00:01]} Kf6 {[%emt 0:00:00]} 36. Nh3 {[%emt 0:00:52]} Re6 {[%emt 0:00:20]} 37. Nf2 {[%emt 0:00:35]} Rae8 {[%emt 0:00:09]} 38. Bb1 {[%emt 0:01:09]} a5 {[%emt 0:00:15]} 39. Rb2 {[%emt 0:00:00]} Rh8 {[%emt 0:02:41]} 40. Kf1 {[%emt 0:00:26]} h3 {[%emt 0:00:44]} 41. gxh3 {[%emt 0:00:30]} Bxf3 {[%emt 0:00:07]} 42. Bc2 {[%emt 0:00:28]} Rhe8 {[%emt 0:00:57]} 43. Bd1 {[%emt 0:00:26]} Bc6 {[%emt 0:01:30]} 44. Rbe2 {[%emt 0:00:33]} e4 {[%emt 0:01:08]} 45. dxe4 {[%emt 0:00:26]} fxe4 {[%emt 0:00:01]} 46. Ng4+ {[%emt 0:00:01]} Kg7 {[%emt 0:00:14]} 47. Rd2 {[%emt 0:01:06]} Nd3 {[%emt 0:00:58]} 48. Ree2 {[%emt 0:00:02]} Nf4 {[%emt 0:00:37]} 49. Rxd4 {[%emt 0:00:56]} Nxe2 {[%emt 0:00:09]} 50. Kxe2 {[%emt 0:00:16]} R8e7 {[%emt 0:02:23]} 51. Ke3 {[%emt 0:00:45]} Rf7 {[%emt 0:01:17]} 52. Be2 {[%emt 0:00:18]} a4 {[%emt 0:00:28]} 53. Nf2 {[%emt 0:00:42]} axb3 {[%emt 0:01:37]} 54. axb3 {[%emt 0:00:02]} Rfe7 {[%emt 0:02:21]} 55. Bg4 {[%emt 0:00:59]} Re5 {[%emt 0:00:07]} 56. Rd6 {[%emt 0:00:26]} Ba8 {[%emt 0:00:32]} 57. Rb6 {[%emt 0:00:34]} Rb7 {[%emt 0:00:02]} 58. Rd6 {[%emt 0:00:02]} Kf7 {[%emt 0:03:03]} 59. Bc8 {[%emt 0:01:32]} Rc7 {[%emt 0:01:24]} 60. Bg4 {[%emt 0:00:00]} Bc6 {[%emt 0:00:08]} 61. Rd4 {[%emt 0:00:00]} Ra5 {[%emt 0:02:25]} 62. Nxe4 {[%emt 0:00:46]} Re7 {[%emt 0:00:32]} 63. Bf3 {[%emt 0:00:41]} Ra2 {[%emt 0:01:31]} 64. Kf4 {[%emt 0:00:30]} Bxe4 {[%emt 0:00:40]} 65. Bxe4 {[%emt 0:00:23]} Rxh2 {[%emt 0:01:17]} 66. Kg3 {[%emt 0:00:32]} Re2 {[%emt 0:00:21]} 67. Bd5+ {[%emt 0:00:21]} Kf6 {[%emt 0:00:12]} 68. c5 {[%emt 0:00:41]} R7e5 {[%emt 0:01:50]} 69. Bc4 {[%emt 0:00:33]} R2e3+ {[%emt 0:00:01]} 70. Kf4 {[%emt 0:00:18]} g5+ {[%emt 0:00:25]} 71. Kg4 {[%emt 0:00:10]} R5e4+ {[%emt 0:00:13]} 72. Rxe4 {[%emt 0:01:35]} Rxe4+ {[%emt 0:35:19]} 73. Kf3 {[%emt 0:00:00]} Rxc4 {[%emt 0:00:00]} 74. bxc4 {[%emt 0:00:00]} b3 {[%emt 0:00:00]} 75. c6 {[%emt 0:00:00]} Ke6 {[%emt 0:00:00]} 76. c7 {[%emt 0:00:56]} Kd7 {[%emt 0:00:00]} 77. c8=Q+ {[%emt 0:00:11]} Kxc8 {[%emt 0:00:00]} 78. Kg4 {[%emt 0:00:07]} b2 {[%emt 0:00:00]} 79. Kxg5 {[%emt 0:00:07]} b1=Q {[%emt 0:00:00]} 80. h4 {[%emt 0:00:06]} Qh7 {[%emt 0:00:00]} 0-1